bitfinex/quotes_SOLUSD_20260226
["timestamp","ask_amount","ask_price","bid_price","bid_amount"]
[1772118544236,0.66039263,86.792,86.751,0.6709284]
[1772118544439,0.66039263,86.788,86.722,0.6709284]
[1772118544646,0.66039263,86.769,86.73,9.83356385]
[1772118544956,0.66039263,86.769,86.722,0.6709284]
[1772118545321,0.66039263,86.769,86.731,0.6709284]
[1772118545540,9.83356385,86.76,86.72,9.83356385]
[1772118545750,0.66039263,86.759,86.72,9.83356385]
[1772118546153,0.66039263,86.759,86.653,46.16060407]
[1772118546154,0.66039263,86.739,86.694,0.6709284]
[1772118546850,0.66039263,86.739,86.71,9.83356385]
[1772118547240,0.66039263,86.739,86.71,9.86000936]
[1772118547537,11.5289723,86.738,86.71,21.39258225]
[1772118547737,11.52697889,86.753,86.72,9.86000936]
[1772118549051,40.34442612,86.753,86.72,9.86000936]
[1772118549250,0.66039263,86.752,86.711,0.6709284]
[1772118549745,0.66039263,86.752,86.711,12.2034762]
[1772118549946,0.66039263,86.739,86.7,9.86000936]
[1772118550151,0.66039263,86.739,86.687,0.6709284]
[1772118550460,144.08723616,86.753,86.69,9.86000936]
[1772118550461,0.66039263,86.719,86.69,9.86000936]
[1772118550755,0.66039263,86.738,86.701,0.6709284]
[1772118551058,0.66039263,86.738,86.7,9.86000936]
[1772118551851,0.66039263,86.738,86.691,0.6709284]
[1772118552053,0.66039263,86.738,86.7,9.86000936]
[1772118552256,0.66039263,86.738,86.69,40.37366998]
[1772118552449,0.66039263,86.729,86.69,9.86000936]
[1772118552852,0.66039263,86.727,86.69,9.86000936]
[1772118553167,0.66039263,86.709,86.665,0.6709284]
[1772118553337,0.66039263,86.709,86.66,21.49925977]
[1772118554261,0.66039263,86.695,86.66,0.1]
[1772118554467,201.78027856,86.728,86.66,0.1]
[1772118554468,0.66039263,86.689,86.66,0.1]
[1772118554972,0.66039263,86.687,86.66,0.1]
[1772118555652,0.66039263,86.709,86.67,9.86000936]
[1772118555846,0.66039263,86.709,86.661,0.6709284]
[1772118556049,0.66039263,86.699,86.66,9.96000936]
[1772118557194,12.19468407,86.698,86.661,11.53921602]
[1772118557671,0.66039263,86.711,86.68,9.86000936]
[1772118558062,0.66039263,86.722,86.69,9.86000936]
[1772118558457,9.86000936,86.73,86.69,9.86000936]
[1772118558767,0.66039263,86.733,86.7,9.86000936]
[1772118558967,12.19016249,86.732,86.7,9.86000936]
[1772118559548,0.66039263,86.749,86.701,0.6709284]
[1772118559749,0.66039263,86.748,86.701,0.6709284]
[1772118559961,11.5275104,86.749,86.68,9.86000936]
[1772118559962,0.66039263,86.729,86.68,9.86000936]
[1772118560159,0.66039263,86.709,86.67,9.86000936]
[1772118560350,0.66039263,86.699,86.66,9.96000936]
[1772118560754,0.66039263,86.7,86.66,0.1]
[1772118560958,0.66039263,86.7,86.67,9.86000936]
[1772118561161,11.53282819,86.709,86.67,9.86000936]
[1772118561360,9.86000936,86.7,86.662,0.6709284]
[1772118561547,0.66039263,86.699,86.66,9.96000936]
[1772118561769,0.66039263,86.699,86.66,21.49926083]
[1772118562076,0.66039263,86.699,86.661,0.6709284]
[1772118562771,0.66039263,86.699,86.66,9.96000936]
[1772118562964,0.66039263,86.697,86.66,9.96000936]
[1772118563171,40.37002006,86.698,86.66,9.96000936]
[1772118563172,0.66039263,86.689,86.66,0.1]
[1772118563980,0.66039263,86.689,86.66,9.96000936]
[1772118564272,0.66039263,86.687,86.66,0.1]
[1772118564581,0.66039263,86.687,86.639,28.85530823]
[1772118564582,0.66039263,86.669,86.63,9.86000936]
[1772118564776,0.66039263,86.68,86.641,0.6709284]
[1772118565075,0.66039263,86.68,86.63,40.40158914]
[1772118565278,0.66039263,86.669,86.62,9.86000936]
[1772118565482,0.66039263,86.659,86.62,9.86000936]
[1772118565783,132.659653,86.688,86.611,11.54587754]
[1772118565784,0.66039263,86.649,86.611,12.21680594]
[1772118566170,0.66039263,86.649,86.62,9.86000936]
[1772118566569,11.54094728,86.648,86.611,0.6709284]
[1772118566766,11.54094728,86.648,86.62,9.86000936]
[1772118567082,0.69419323,86.648,86.612,0.70785379]
[1772118567280,0.69419323,86.639,86.61,0.1]
[1772118568161,0.69419323,86.629,86.591,0.70785379]
[1772118568362,0.69419323,86.629,86.6,9.86000936]
[1772118568781,11.54361176,86.628,86.591,0.70785379]
[1772118569079,11.54361176,86.628,86.592,11.54841093]
[1772118569378,11.54214614,86.639,86.601,0.70785379]
[1772118569579,12.23633937,86.639,86.6,9.86000936]
[1772118569765,0.69419323,86.639,86.61,9.86000936]
[1772118570266,11.54155265,86.644,86.61,9.86000936]
[1772118570877,12.23500731,86.649,86.612,0.70785379]
[1772118571280,11.54081408,86.649,86.621,0.70785379]
[1772118571990,0.69419323,86.648,86.61,10.56786315]
[1772118572201,0.69419323,86.648,86.611,11.54587754]
[1772118572880,11.54108047,86.647,86.611,11.54587754]
[1772118574188,0.69419323,86.66,86.621,0.70785379]
[1772118574394,11.53977416,86.657,86.621,0.70785379]
[1772118574588,0.69419323,86.649,86.61,9.86000936]
[1772118574881,0.69419323,86.637,86.592,0.70785379]
[1772118575269,0.69419323,86.637,86.581,28.87447286]
[1772118575270,0.69419323,86.629,86.581,0.70785379]
[1772118575470,0.69419323,86.629,86.591,0.70785379]
[1772118575875,0.69419323,86.609,86.571,0.70785379]
[1772118576073,0.69419323,86.619,86.581,0.70785379]
[1772118577088,0.69419323,86.619,86.552,98.20685828]
[1772118577089,0.69419323,86.599,86.552,0.70785379]
[1772118577379,0.69419323,86.589,86.552,0.70785379]
[1772118577576,0.69419323,86.579,86.54,0.70785379]
[1772118577784,0.69419323,86.569,86.518,0.70785379]
[1772118577978,0.69419323,86.568,86.517,11.55842204]
[1772118578276,0.69419323,86.568,86.478,46.25400647]
[1772118578277,9.86000936,86.54,86.494,0.70037258]
[1772118578571,0.66334908,86.539,86.501,0.70037258]
[1772118578774,9.86000936,86.57,86.531,0.70037258]
[1772118579191,9.86000936,86.55,86.51,9.86000936]
[1772118579377,9.86000936,86.55,86.506,0.70037258]
[1772118579578,9.86000936,86.54,86.506,0.70037258]
[1772118580074,9.86000936,86.54,86.495,0.70037258]
[1772118580277,9.86000936,86.52,86.49,0.1]
[1772118580472,9.86000936,86.54,86.491,0.70037258]
[1772118580673,9.86000936,86.54,86.5,9.86000936]
[1772118580876,0.66334908,86.539,86.5,9.86000936]
[1772118581091,11.55561718,86.538,86.51,9.86000936]
[1772118581482,11.55561718,86.538,86.501,0.70037258]
[1772118581680,0.66334908,86.55,86.52,9.86000936]
[1772118582008,11.55414851,86.549,86.511,0.70037258]
[1772118582507,0.66334908,86.55,86.52,9.86000936]
[1772118582802,11.55287041,86.559,86.521,0.70037258]
[1772118583178,11.55195385,86.566,86.531,0.70037258]
[1772118583487,40.43165257,86.566,86.531,0.70037258]
[1772118583689,9.86000936,86.56,86.523,0.70037258]
[1772118584090,0.66334908,86.565,86.523,0.70037258]
[1772118584280,0.66334908,86.559,86.523,0.70037258]
[1772118584893,0.66334908,86.549,86.51,9.86000936]
[1772118585093,40.43165257,86.566,86.52,9.86000936]
[1772118585276,40.43165257,86.566,86.53,9.86000936]
[1772118585472,40.43165257,86.566,86.53,10.56038194]
[1772118585693,11.55195385,86.566,86.531,0.70037258]
[1772118585897,11.55128253,86.571,86.54,9.86000936]
[1772118586100,11.54894442,86.588,86.551,0.70037258]
[1772118586277,11.54747745,86.599,86.56,10.56038194]
[1772118586480,11.54707743,86.602,86.58,9.86000936]
[1772118586692,40.40917172,86.614,86.58,10.56038194]
[1772118587232,11.54547763,86.614,86.58,10.56038194]
[1772118587401,11.54547763,86.614,86.581,11.54987814]
[1772118587582,11.54547763,86.614,86.58,10.56038194]
[1772118587583,0.66334908,86.613,86.57,9.86000936]
[1772118587784,0.66334908,86.599,86.56,9.86000936]
[1772118588109,10.52335844,86.59,86.55,9.86000936]
[1772118588280,9.86000936,86.6,86.56,9.86000936]
[1772118588486,0.66334908,86.604,86.561,0.70037258]
[1772118588706,0.66334908,86.613,86.571,0.70037258]
[1772118588879,0.66334908,86.609,86.56,10.56038194]
[1772118589197,0.66334908,86.597,86.551,0.70037258]
[1772118589405,0.66334908,86.597,86.552,0.70037258]
[1772118589703,9.86000936,86.58,86.541,0.70037258]
[1772118589900,0.66334908,86.559,86.52,9.86000936]
[1772118590104,10.52335844,86.55,86.51,9.86000936]
[1772118590806,9.86000936,86.55,86.512,0.70037258]
[1772118590981,10.52335844,86.55,86.512,0.70037258]
[1772118591406,41.10286888,86.549,86.512,0.70037258]
[1772118591609,9.86000936,86.54,86.501,0.70037258]
[1772118591802,9.86000936,86.54,86.502,11.56042634]
[1772118592008,0.66334908,86.548,86.51,9.86000936]
[1772118592205,10.52335844,86.54,86.503,0.70037258]
[1772118592601,11.55414851,86.549,86.511,0.70037258]
[1772118592907,11.55294715,86.558,86.521,0.70037258]
[1772118593287,0.66334908,86.568,86.521,0.70037258]
[1772118593488,9.86000936,86.55,86.508,11.55962454]
[1772118593789,0.66334908,86.539,86.495,0.70037258]
[1772118593998,9.86000936,86.52,86.49,0.1]
[1772118594197,0.66334908,86.529,86.491,11.56189661]
[1772118595112,9.86000936,86.52,86.49,0.1]
[1772118595407,0.66334908,86.517,86.49,0.1]
[1772118595793,11.55828844,86.518,86.491,0.70037258]
[1772118596010,11.5568191,86.529,86.491,0.70037258]
[1772118597204,40.44886685,86.529,86.491,0.70037258]
[1772118597595,11.5568191,86.529,86.492,12.25038827]
[1772118597801,11.55548365,86.539,86.501,0.68862534]
[1772118598496,9.86000936,86.53,86.501,0.68862534]
[1772118598700,10.57922214,86.53,86.491,0.68862534]
[1772118598901,0.71921278,86.529,86.491,0.68862534]
[1772118599105,9.86000936,86.52,86.491,0.68862534]
[1772118599308,0.71921278,86.529,86.49,0.1]
[1772118599810,11.55695266,86.528,86.491,0.68862534]
[1772118600018,40.44933431,86.528,86.491,0.68862534]
[1772118600188,11.55695266,86.528,86.5,9.86000936]
[1772118600392,11.55695266,86.528,86.491,0.68862534]
[1772118600803,0.71921278,86.527,86.49,0.1]
[1772118600995,0.71921278,86.519,86.49,0.1]
[1772118601196,40.44933431,86.528,86.491,0.68862534]
[1772118601197,11.55695266,86.528,86.491,0.68862534]
[1772118601719,9.86000936,86.54,86.501,0.68862534]
[1772118601907,11.55348106,86.554,86.521,0.68862534]
[1772118602106,11.55348106,86.554,86.51,9.86000936]
[1772118602107,10.57922214,86.55,86.51,9.86000936]
[1772118602413,0.71921278,86.549,86.51,9.86000936]
[1772118602590,0.71921278,86.549,86.506,0.68862534]
[1772118602793,0.71921278,86.539,86.5,9.86000936]
[1772118603092,40.43718371,86.554,86.52,9.86000936]
[1772118603294,11.55296497,86.558,86.53,9.86000936]
[1772118603496,11.55239656,86.563,86.531,0.68862534]
[1772118603919,11.55239656,86.563,86.532,11.55641843]
[1772118604117,11.55094544,86.573,86.551,0.68862534]
[1772118604322,0.71921278,86.569,86.53,9.86000936]
[1772118604522,40.42830905,86.573,86.54,9.86000936]
[1772118604699,11.55094544,86.573,86.55,9.86000936]
[1772118604899,11.54872344,86.59,86.56,9.86000936]
[1772118605113,0.71921278,86.589,86.551,0.68862534]
[1772118605396,0.71921278,86.619,86.581,0.68862534]
[1772118605601,0.71921278,86.619,86.58,9.86000936]
[1772118605801,11.54134687,86.645,86.61,9.86000936]
[1772118606123,0.71921278,86.658,86.62,9.86000936]
[1772118606315,12.25736367,86.669,86.63,9.86000936]
[1772118606515,12.25736367,86.669,86.63,10.5486347]
[1772118606815,9.86000936,86.69,86.65,9.86000936]
[1772118607505,0.2,86.7,86.68,9.87413336]
[1772118607702,11.53415841,86.699,86.671,0.68862534]
[1772118607923,11.53415841,86.699,86.66,9.87413336]
[1772118608220,40.36955443,86.699,86.66,9.87413336]
[1772118608399,0.71921278,86.679,86.633,0.68862534]
[1772118608594,10.59334614,86.66,86.62,9.87413336]
[1772118608820,9.87413336,86.64,86.605,0.68862534]
[1772118608999,9.87413336,86.63,86.605,0.68862534]
[1772118609201,9.87413336,86.62,86.591,0.68862534]
[1772118609421,0.71921278,86.636,86.591,0.68862534]
[1772118609422,9.87413336,86.63,86.591,0.68862534]
[1772118609631,9.87413336,86.61,86.579,0.68862534]
[1772118609807,5.36086188,86.661,86.591,0.68862534]
[1772118609808,11.54361176,86.628,86.591,0.68862534]
[1772118610318,9.87413336,86.62,86.591,0.68862534]
[1772118610520,5.36086188,86.651,86.58,9.87413336]
[1772118610521,9.87413336,86.65,86.61,9.87413336]
[1772118610821,11.540015,86.655,86.611,0.68862534]
[1772118610996,9.87413336,86.64,86.6,9.87413336]
[1772118611718,9.87413336,86.64,86.581,40.42448189]
[1772118611719,40.3900525,86.655,86.62,10.5627587]
[1772118612028,11.540015,86.655,86.621,0.68862534]
[1772118612324,40.38492603,86.666,86.629,0.68862534]
[1772118612803,9.87413336,86.66,86.629,0.68862534]
[1772118613201,11.53855029,86.666,86.631,0.68862534]
[1772118613408,9.87413336,86.66,86.62,9.87413336]
[1772118613612,9.87413336,86.66,86.62,10.5627587]
[1772118613817,9.87413336,86.63,86.59,10.5627587]
[1772118614025,9.87413336,86.63,86.573,28.87716629]
[1772118614026,9.87413336,86.64,86.601,0.68862534]
[1772118614202,40.3928493,86.649,86.601,0.68862534]
[1772118614636,9.87413336,86.64,86.601,0.68862534]
[1772118614806,9.87413336,86.63,86.59,9.87413336]
[1772118615007,0.71921278,86.636,86.6,9.87413336]
[1772118615330,9.87413336,86.64,86.601,0.68862534]
[1772118615527,41.11206208,86.649,86.601,0.68862534]
[1772118615732,0.71921278,86.639,86.59,9.87413336]
[1772118616222,0.71921278,86.637,86.591,0.68862534]
[1772118616442,0.71921278,86.637,86.59,9.87413336]
[1772118616610,9.87413336,86.63,86.59,9.87413336]
[1772118616929,40.39797778,86.638,86.601,0.68862534]
[1772118617114,40.39797778,86.638,86.572,40.42877604]
[1772118617115,9.87413336,86.63,86.589,0.68862534]
[1772118617825,41.11719056,86.638,86.59,10.5627587]
[1772118618022,41.11719056,86.638,86.55,46.21575603]
[1772118618023,0.71921278,86.638,86.611,0.68862534]
[1772118618206,11.54241259,86.637,86.611,0.68862534]
[1772118618407,9.87413336,86.63,86.595,0.68862534]
[1772118618607,9.87413336,86.63,86.583,0.68862534]
[1772118618909,9.87413336,86.63,86.506,110.04613018]
[1772118618910,9.87413336,86.63,86.591,0.68862534]
[1772118619110,9.87413336,86.62,86.58,10.5627587]
[1772118619714,9.87413336,86.62,86.581,0.68862534]
[1772118619929,40.39844407,86.637,86.601,0.68862534]
[1772118620128,9.87413336,86.63,86.59,10.5627587]
[1772118620327,40.39844407,86.637,86.6,9.87413336]
[1772118620512,40.39844407,86.637,86.601,0.68862534]
[1772118620708,0.71921278,86.638,86.611,0.68862534]
[1772118620909,11.54241259,86.637,86.611,0.68862534]
[1772118621232,40.39844407,86.637,86.6,10.5627587]
[1772118621610,40.39844407,86.637,86.601,0.68862534]
[1772118622128,11.54267905,86.635,86.601,0.68862534]
[1772118622317,11.54081408,86.649,86.611,0.68862534]
[1772118622633,40.3928493,86.649,86.611,0.68862534]
[1772118623610,11.53881657,86.664,86.631,0.68862534]
[1772118623812,11.53881657,86.664,86.64,9.87413336]
[1772118624033,9.87413336,86.67,86.631,0.68862534]
[1772118624335,40.37793748,86.681,86.651,0.68862534]
[1772118624540,0.71921278,86.698,86.67,9.87413336]
[1772118624541,11.5352228,86.691,86.67,9.87413336]
[1772118624714,40.3732798,86.691,86.65,10.5627587]
[1772118625131,0.71921278,86.669,86.624,0.68862534]
[1772118625643,9.87413336,86.69,86.641,0.68862534]
[1772118625814,0.71921278,86.689,86.641,0.68862534]
[1772118626011,11.535622,86.688,86.651,0.70445892]
[1772118626214,11.53415841,86.699,86.68,9.87413336]
[1772118626439,11.53415841,86.699,86.67,9.87413336]
[1772118626656,0.2,86.7,86.671,0.70445892]
[1772118626934,0.2,86.7,86.67,9.87413336]
[1772118626935,10.53644948,86.72,86.681,0.70445892]
[1772118627137,0.66231612,86.719,86.681,0.70445892]
[1772118627313,0.66231612,86.709,86.66,9.87413336]
[1772118627634,0.66231612,86.699,86.66,9.87413336]
[1772118627844,0.66231612,86.699,86.661,0.70445892]
[1772118628041,9.87413336,86.71,86.67,9.87413336]
[1772118628213,40.36489867,86.709,86.67,9.87413336]
[1772118628414,41.02721479,86.709,86.661,0.70445892]
[1772118628614,41.02721479,86.709,86.67,9.87413336]
[1772118628834,40.36489867,86.709,86.68,9.87413336]
[1772118629035,11.53282819,86.709,86.681,0.70445892]
[1772118629214,0.66231612,86.723,86.69,9.87413336]
[1772118629215,11.53136531,86.72,86.69,9.87413336]
[1772118629533,11.53136531,86.72,86.681,0.70445892]
[1772118629733,40.35977859,86.72,86.681,0.70445892]
[1772118630233,40.36489867,86.709,86.67,9.87413336]
[1772118630542,11.53282819,86.709,86.68,9.87413336]
[1772118630921,11.53282819,86.709,86.67,9.87413336]
[1772118630922,0.66231612,86.708,86.67,9.87413336]
[1772118631125,0.66231612,86.699,86.66,9.87413336]
[1772118631633,11.53282819,86.709,86.68,9.87413336]
[1772118632026,11.53096641,86.723,86.7,9.87413336]
[1772118632225,11.53096641,86.723,86.641,1.43851111]
[1772118632226,28.82539956,86.73,86.69,10.57859228]
[1772118632741,11.52937107,86.735,86.651,46.16210296]
[1772118632742,11.52937107,86.735,86.7,9.87413336]
[1772118632938,40.35279875,86.735,86.691,0.70445892]
[1772118633126,0.66231612,86.734,86.691,0.70445892]
[1772118633449,0.66231612,86.729,86.691,0.70445892]
[1772118633956,11.52937107,86.735,86.701,0.70445892]
[1772118634118,0.2,86.74,86.71,9.87413336]
[1772118634466,6.01630518,86.775,86.73,9.87413336]
[1772118634467,28.81259909,86.768,86.73,9.87413336]
[1772118634746,9.87413336,86.76,86.72,9.87413336]
[1772118634953,0.66231612,86.76,86.73,9.87413336]
[1772118635328,11.52485334,86.769,86.74,9.87413336]
[1772118635658,6.01536541,86.799,86.76,9.87413336]
[1772118635659,0.66231612,86.799,86.76,9.87413336]
[1772118635950,9.87413336,86.79,86.753,0.70445892]
[1772118636128,0.66231612,86.789,86.74,10.57859228]
[1772118636330,0.66231612,86.777,86.73,9.87413336]
[1772118636527,40.33280324,86.778,86.75,10.57859228]
[1772118636528,11.52365807,86.778,86.75,10.57859228]
[1772118636726,11.52365807,86.778,86.75,9.87413336]
[1772118637243,11.52365807,86.778,86.7,9.87413336]
[1772118637244,0.66231612,86.777,86.73,9.87413336]
[1772118637430,0.66231612,86.777,86.74,9.87413336]
[1772118637626,11.52365807,86.778,86.75,9.87413336]
[1772118637843,0.66231612,86.777,86.74,9.87413336]
[1772118638937,40.33373282,86.776,86.74,9.87413336]
[1772118639138,40.33373282,86.776,86.74,10.53937873]
[1772118640461,46.06740347,86.83,86.715,28.8299938]
[1772118640462,0.70936361,86.803,86.77,9.87413336]
[1772118640643,11.51861408,86.816,86.79,9.87413336]
[1772118640845,0.70936361,86.815,86.77,9.87413336]
[1772118641151,0.70936361,86.809,86.77,9.87413336]
[1772118641361,0.70936361,86.789,86.75,9.87413336]
[1772118641547,5.36086188,86.812,86.678,46.14739198]
[1772118641548,0.70936361,86.779,86.733,0.66524537]
[1772118641745,9.87413336,86.79,86.75,9.87413336]
[1772118641940,10.58349697,86.79,86.75,9.87413336]
[1772118642285,5.36086188,86.812,86.672,46.15084279]
[1772118642286,0.70936361,86.779,86.74,9.87413336]
[1772118642435,0.70936361,86.779,86.73,9.87413336]
[1772118643360,0.70936361,86.777,86.74,9.87413336]
[1772118643578,0.70936361,86.769,86.73,9.87413336]
[1772118643977,0.70936361,86.796,86.741,0.66524537]
[1772118644154,46.06844985,86.828,86.77,9.87413336]
[1772118644155,12.22890651,86.809,86.77,9.87413336]
[1772118644483,0.70936361,86.808,86.77,9.87413336]
[1772118645259,41.0324088,86.799,86.763,0.66524537]
[1772118645448,41.0324088,86.799,86.76,9.87413336]
[1772118645667,11.5196756,86.808,86.771,0.66524537]
[1772118645867,0.70936361,86.84,86.8,9.87413336]
[1772118646069,0.70936361,86.84,86.81,9.87413336]
[1772118646377,11.51317683,86.857,86.83,9.87413336]
[1772118646869,11.512297,86.864,86.84,9.87413336]
[1772118647072,0.70936361,86.878,86.85,9.87413336]
[1772118647299,11.50893668,86.889,86.85,9.87413336]
[1772118647457,0.70936361,86.888,86.85,9.87413336]
[1772118647857,11.5076793,86.899,86.87,9.87413336]
[1772118648067,11.5076793,86.899,86.829,46.06755603]
[1772118648068,0.70936361,86.889,86.829,11.51688951]
[1772118648269,0.70936361,86.869,86.83,9.87413336]
[1772118648668,0.70936361,86.869,86.82,9.87413336]
[1772118649372,0.70936361,86.849,86.81,9.87413336]
[1772118649577,0.70936361,86.849,86.82,9.87413336]
[1772118649781,0.70936361,86.849,86.81,9.87413336]
[1772118650279,11.51158641,86.869,86.83,9.87413336]
[1772118650674,11.51158641,86.869,86.84,9.87413336]
[1772118651159,5.36086188,86.905,86.802,86.40353907]
[1772118651160,0.2,86.9,86.86,9.87413336]
[1772118651359,11.50761228,86.899,86.88,9.87413336]
[1772118651661,11.50761228,86.899,86.87,9.87413336]
[1772118651869,0.2,86.9,86.871,11.51132138]
[1772118652063,0.70936361,86.945,86.891,0.66524537]
[1772118652272,0.70936361,86.938,86.9,9.87413336]
[1772118652457,0.70936361,86.938,86.891,0.66524537]
[1772118652657,0.70936361,86.938,86.9,9.87413336]
[1772118653473,0.70936361,86.936,86.9,9.87413336]
[1772118653774,40.25903814,86.937,86.88,9.87413336]
[1772118653775,0.70936361,86.919,86.88,9.87413336]
[1772118654075,0.70936361,86.931,86.89,9.87413336]
[1772118654274,0.70936361,86.929,86.89,9.87413336]
[1772118654479,40.25903814,86.937,86.87,9.87413336]
[1772118654480,0.70936361,86.909,86.87,9.87413336]
[1772118655482,0.70936361,86.907,86.87,9.87413336]
[1772118655975,0.70936361,86.907,86.844,12.18004385]
[1772118656176,0.74190974,86.889,86.85,9.87413336]
[1772118656368,0.74190974,86.879,86.83,9.87413336]
[1772118656686,0.74190974,86.869,86.83,9.87413336]
[1772118657175,0.74190974,86.882,86.85,9.87413336]
[1772118657375,0.74190974,86.882,86.84,9.87413336]
[1772118657376,40.2849875,86.881,86.84,9.87413336]
[1772118657682,9.87413336,86.88,86.84,9.87413336]
[1772118657883,0.74190974,86.879,86.834,0.69394582]
[1772118658054,0.74190974,86.879,86.835,11.51609374]
[1772118658261,0.74190974,86.879,86.834,0.69394582]
[1772118658461,0.74190974,86.869,86.83,9.87413336]
[1772118659057,0.74190974,86.869,86.821,0.69394582]
[1772118659373,0.74190974,86.869,86.82,9.87413336]
[1772118659374,0.74190974,86.859,86.82,9.87413336]
[1772118659584,40.29101624,86.868,86.83,9.87413336]
[1772118659765,11.51171892,86.868,86.83,9.87413336]
[1772118659965,0.74190974,86.867,86.83,9.87413336]
[1772118660477,0.74190974,86.867,86.821,0.69394582]
[1772118660658,0.74190974,86.882,86.84,9.87413336]
[1772118660858,0.74190974,86.919,86.87,9.87413336]
[1772118661060,0.74190974,86.909,86.87,9.87413336]
[1772118661284,0.74190974,86.899,86.85,9.87413336]
[1772118661585,0.74190974,86.897,86.86,9.87413336]
[1772118661782,12.24833032,86.908,86.87,9.87413336]
[1772118662083,11.50642058,86.908,86.88,9.87413336]
[1772118662262,11.50642058,86.908,86.87,9.87413336]
[1772118662655,0.74190974,86.899,86.85,9.87413336]
[1772118662878,0.74190974,86.899,86.86,9.87413336]
[1772118663079,40.27247203,86.908,86.87,9.87413336]
[1772118663480,9.87413336,86.9,86.862,0.69394582]
[1772118663682,0.74190974,86.899,86.853,11.51358235]
[1772118663866,0.74190974,86.899,86.86,9.87413336]
[1772118664471,40.27247203,86.908,86.787,0.69394582]
[1772118664472,5.36086188,86.888,86.787,0.69394582]
[1772118664692,40.27247203,86.908,86.83,9.87413336]
[1772118664693,0.74190974,86.869,86.83,9.87413336]
[1772118665184,0.74190974,86.859,86.82,9.87413336]
[1772118665578,40.29565496,86.858,86.82,9.87413336]
[1772118665880,0.74190974,86.849,86.811,11.51927751]
[1772118666183,11.51104872,86.874,86.841,0.69394582]
[1772118667070,9.87413336,86.92,86.86,9.87413336]
[1772118667376,9.87413336,86.93,86.891,0.69394582]
[1772118667762,40.26274315,86.929,86.891,0.69394582]
[1772118668366,9.87413336,86.92,86.88,9.87413336]
[1772118668575,9.87413336,86.92,86.863,28.78093594]
[1772118668576,9.87413336,86.91,86.87,9.87413336]
[1772118668976,9.87413336,86.91,86.862,0.69394582]
[1772118669166,9.87413336,86.91,86.87,9.87413336]
[1772118669370,9.82312589,86.91,86.87,9.82312589]
[1772118669585,11.50628818,86.909,86.87,9.82312589]
[1772118669769,11.50628818,86.909,86.881,0.69394582]
[1772118669976,11.50628818,86.909,86.89,9.82312589]
[1772118670488,11.50496439,86.919,86.881,0.69394582]
[1772118670672,12.24687413,86.919,86.881,0.69394582]
[1772118670991,41.00928511,86.919,86.881,0.69394582]
[1772118671177,11.50496439,86.919,86.89,9.82312589]
[1772118671379,11.50496439,86.919,86.891,0.69394582]
[1772118671593,50.08540588,86.93,86.891,0.69394582]
[1772118671884,0.74190974,86.929,86.891,0.69394582]
[1772118672500,0.74190974,86.919,86.88,9.82312589]
[1772118672789,9.82312589,86.92,86.87,9.82312589]
[1772118672979,0.74190974,86.909,86.87,9.82312589]
[1772118673476,86.27631427,86.93,86.823,40.45406048]
[1772118673477,0.74190974,86.898,86.823,40.45406048]
[1772118673677,0.74190974,86.898,86.86,9.82312589]
[1772118673875,0.74190974,86.898,86.85,9.82312589]
[1772118674064,11.50284695,86.935,86.89,9.82312589]
[1772118674266,11.70225582,86.94,86.91,9.82312589]
[1772118674473,11.50231771,86.939,86.91,9.82312589]
[1772118674672,0.2,86.94,86.92,9.82312589]
[1772118674889,11.50231771,86.939,86.91,9.82312589]
[1772118675087,0.2,86.94,86.91,9.82312589]
[1772118675395,6.21346177,86.98,86.88,9.82312589]
[1772118675396,11.49887885,86.965,86.93,9.82312589]
[1772118675574,28.74448147,86.974,86.921,0.69394582]
[1772118675575,28.74448147,86.974,86.94,9.82312589]
[1772118676093,12.23920212,86.977,86.94,9.82312589]
[1772118676473,12.23920212,86.977,86.95,9.82312589]
[1772118676673,40.98243308,86.977,86.94,9.82312589]
[1772118676897,12.23920212,86.977,86.94,9.82312589]
[1772118677402,0.74190974,86.976,86.94,9.82312589]
[1772118677698,0.74190974,86.974,86.94,9.82312589]
[1772118678104,11.49755676,86.975,86.95,9.82312589]
[1772118678396,11.49755676,86.975,86.941,0.69394582]
[1772118678591,11.49755676,86.975,86.94,9.82312589]
[1772118678893,0.74190974,86.974,86.94,9.82312589]
[1772118679306,0.74190974,86.974,86.93,9.82312589]
[1772118679602,0.74190974,86.959,86.92,9.82312589]
[1772118679894,0.74190974,86.957,86.92,9.82312589]
[1772118680088,40.24931575,86.958,86.93,9.82312589]
[1772118680298,40.24931575,86.958,86.92,9.82312589]
[1772118680475,0.74190974,86.957,86.861,0.69394582]
[1772118680676,11.4998045,86.958,86.92,9.82312589]
[1772118680877,0.74190974,86.957,86.92,9.82312589]
[1772118681095,0.74190974,86.957,86.88,9.82312589]
[1772118681096,11.49834998,86.969,86.93,9.82312589]
[1772118681285,11.49768272,86.975,86.95,9.82312589]
[1772118681483,11.69698877,86.98,86.95,9.82312589]
[1772118681802,11.69698877,86.98,86.935,0.69394582]
[1772118681803,0.74190974,86.979,86.94,9.82312589]
[1772118681988,0.74190974,86.979,86.95,9.82312589]
[1772118682401,0.74190974,86.978,86.911,0.69394582]
[1772118682702,0.74190974,86.969,86.94,9.82312589]
[1772118682876,0.74190974,86.979,86.94,9.82312589]
[1772118683483,0.74190974,86.979,86.95,9.82312589]